[Event "European Rapid Championship 2021"]
[Site "Katowice"]
[Date "2021.12.18"]
[Round "5.23"]
[White "Lewtak, Damian"]
[Black "Malinowski, Damian"]
[Result "1-0"]
[ECO "D00"]
[WhiteElo "2185"]
[BlackElo "1885"]
[Annotator "NA"]
[PlyCount "95"]
[EventDate "2021.12.18"]
[EventType "swiss"]
[EventCountry "POL"]
[SourceTitle "playchess.com"]
[Source "ChessBase"]
[SourceQuality "1"]
[TimeControl "900+10"]

1. c3 {[%emt 0:00:02]} d5 {[%emt 0:00:05]} 2. d4 {[%emt 0:00:02]} Nf6 {[%emt 0:
00:11]} 3. Bf4 e6 {[%emt 0:00:11]} 4. e3 {[%emt 0:00:06]} Bd6 {[%emt 0:00:05]}
5. Nd2 {[%emt 0:00:02]} O-O {[%emt 0:00:27]} 6. Bd3 {[%emt 0:00:12]} b6 {
[%emt 0:00:10]} 7. Bg3 {[%emt 0:00:14]} Bb7 {[%emt 0:00:16]} 8. Qc2 {[%emt 0:
00:07]} c5 {[%emt 0:01:02]} 9. Ngf3 {[%emt 0:00:09]} Nc6 {[%emt 0:01:44]} 10.
O-O {[%emt 0:00:41]} Bxg3 {[%emt 0:00:14]} 11. hxg3 {[%emt 0:00:12]} h6 {
[%emt 0:03:58]} 12. Rfe1 {[%emt 0:00:05]} Rc8 {[%emt 0:00:09]} 13. Rac1 {
[%emt 0:00:53]} Re8 {[%emt 0:00:33]} 14. Bb5 {[%emt 0:00:31]} a6 {[%emt 0:01:
00]} 15. Bxc6 {[%emt 0:00:04]} Bxc6 {[%emt 0:00:07]} 16. Ne5 {[%emt 0:00:06]}
Qd6 {[%emt 0:00:14]} 17. f4 {[%emt 0:00:43]} Nd7 {[%emt 0:01:13]} 18. Ndf3 {
[%emt 0:00:31]} Nxe5 {[%emt 0:00:57]} 19. dxe5 {[%emt 0:00:56]} Qc7 {[%emt 0:
00:27]} 20. g4 {[%emt 0:00:40]} Qb7 {[%emt 0:00:49]} 21. Qf2 {[%emt 0:00:11]}
Rcd8 {[%emt 0:00:21]} 22. Red1 {[%emt 0:00:41]} Rd7 {[%emt 0:01:03]} 23. Rd2 {
[%emt 0:00:13]} Red8 {[%emt 0:00:07]} 24. Rcd1 {[%emt 0:00:02]} b5 {[%emt 0:00:
29]} 25. b4 {[%emt 0:00:15]} d4 {[%emt 0:00:35]} 26. exd4 {[%emt 0:00:20]} Bxf3
{[%emt 0:00:03]} 27. Qxf3 {[%emt 0:00:12]} Qxf3 {[%emt 0:00:03]} 28. gxf3 {
[%emt 0:00:02]} cxb4 {[%emt 0:00:20]} 29. cxb4 {[%emt 0:00:03]} Rc7 {[%emt 0:
00:07]} 30. Kf2 {[%emt 0:00:24]} Rc4 {[%emt 0:00:09]} 31. a3 {[%emt 0:00:07]}
Rc3 {[%emt 0:00:38]} 32. Rd3 {[%emt 0:00:04]} Rc2+ {[%emt 0:00:10]} 33. R1d2 {
[%emt 0:00:02]} Rc1 {[%emt 0:00:03]} 34. d5 {[%emt 0:00:38]} exd5 {[%emt 0:00:
03]} 35. Rxd5 {[%emt 0:00:02]} Rxd5 {[%emt 0:00:16]} 36. Rxd5 {[%emt 0:00:04]}
Rc3 {[%emt 0:00:37]} 37. Rd8+ {[%emt 0:00:02]} Kh7 {[%emt 0:00:01]} 38. f5 {
[%emt 0:00:02]} Rc6 {[%emt 0:00:33]} 39. Ke3 {[%emt 0:00:57]} g6 {[%emt 0:00:
12]} 40. fxg6+ {[%emt 0:00:36]} fxg6 {[%emt 0:01:07]} 41. Rd7+ {[%emt 0:00:04]}
Kg8 {[%emt 0:00:01]} 42. f4 {[%emt 0:00:41]} h5 {[%emt 0:00:17]} 43. gxh5 {
[%emt 0:00:19]} gxh5 {[%emt 0:00:02]} 44. f5 {[%emt 0:01:11]} h4 {[%emt 0:00:
29]} 45. e6 {[%emt 0:00:24]} h3 {[%emt 0:00:22]} 46. Rd8+ {[%emt 0:00:29]} Kg7
{[%emt 0:00:08]} 47. e7 {[%emt 0:00:18]} Rc3+ {[%emt 0:00:27]} 48. Ke4 1-0

[Event "European Rapid Championship 2021"]
[Site "Katowice"]
[Date "2021.12.18"]
[Round "5.24"]
[White "Vetoshko, Volodymyr"]
[Black "Praczukowski, Stanislaw"]
[Result "1-0"]
[ECO "B92"]
[WhiteElo "2483"]
[BlackElo "2082"]
[Annotator "ChessBase"]
[PlyCount "95"]
[EventDate "2021.12.18"]
[EventType "swiss"]
[EventCountry "POL"]
[SourceTitle "playchess.com"]
[Source "ChessBase"]
[SourceQuality "1"]
[TimeControl "900+10"]

1. e4 {[%emt 0:00:02]} c5 {[%emt 0:00:26]} 2. Nf3 {[%emt 0:00:02]} d6 {[%emt 0:
00:00]} 3. d4 {[%emt 0:00:00]} cxd4 {[%emt 0:00:01]} 4. Nxd4 {[%emt 0:00:01]}
Nf6 {[%emt 0:00:01]} 5. Nc3 {[%emt 0:00:00]} a6 {[%emt 0:00:02]} 6. Be2 {
[%emt 0:00:01]} e5 {[%emt 0:00:12]} 7. Nb3 {[%emt 0:00:04]} Be7 {[%emt 0:00:03]
} 8. Bg5 {[%emt 0:00:03]} Be6 {[%emt 0:01:11]} 9. Bxf6 {[%emt 0:00:02]} Bxf6 {
[%emt 0:00:01]} 10. Qd3 {[%emt 0:00:04]} O-O {[%emt 0:01:06]} 11. O-O-O {
[%emt 0:00:51]} Be7 {[%emt 0:00:16]} 12. Nd5 {[%emt 0:00:01]} Bxd5 {[%emt 0:00:
25]} 13. Qxd5 {[%emt 0:00:01]} Nc6 {[%emt 0:00:09]} 14. Kb1 {[%emt 0:01:04]} a5
{[%emt 0:00:57]} 15. a4 {[%emt 0:01:18]} Rc8 {[%emt 0:00:11]} 16. c3 {[%emt 0:
00:34]} Qb6 {[%emt 0:00:25]} 17. Rhf1 {[%emt 0:00:18]} Kh8 {[%emt 0:04:06]} 18.
g3 {[%emt 0:00:15]} Bf6 {[%emt 0:00:54]} 19. Nd2 {[%emt 0:03:00]} Ne7 {[%emt 0:
00:20]} 20. Qb5 {[%emt 0:01:15]} Qa7 {[%emt 0:04:45]} 21. Nb3 {[%emt 0:01:52]}
Rc6 {[%emt 0:00:30]} 22. Qxa5 {[%emt 0:00:20]} Qb8 {[%emt 0:00:08]} 23. Bb5 {
[%emt 0:00:59]} Rc7 {[%emt 0:00:20]} 24. Qb4 {[%emt 0:01:01]} Nc8 {[%emt 0:01:
30]} 25. Nd2 {[%emt 0:00:51]} Be7 {[%emt 0:00:10]} 26. Qb3 {[%emt 0:00:02]} Nb6
{[%emt 0:00:31]} 27. f4 {[%emt 0:00:03]} exf4 {[%emt 0:00:12]} 28. gxf4 {
[%emt 0:00:01]} Nd7 {[%emt 0:00:15]} 29. Bxd7 {[%emt 0:00:07]} Rxd7 {[%emt 0:
00:01]} 30. Nc4 {[%emt 0:00:09]} Qc7 {[%emt 0:00:24]} 31. Nb6 {[%emt 0:00:16]}
Rdd8 {[%emt 0:00:11]} 32. Nd5 {[%emt 0:00:06]} Qd7 {[%emt 0:00:01]} 33. f5 {
[%emt 0:01:34]} Rfe8 {[%emt 0:00:16]} 34. Qc4 {[%emt 0:01:41]} Bf8 {[%emt 0:00:
07]} 35. Qd4 {[%emt 0:00:22]} Qc6 {[%emt 0:00:09]} 36. f6 {[%emt 0:00:48]} g6 {
[%emt 0:00:01]} 37. Ne7 {[%emt 0:00:09]} Qa6 {[%emt 0:00:08]} 38. Rf3 {[%emt 0:
00:40]} Ra8 {[%emt 0:00:07]} 39. e5 {[%emt 0:00:59]} dxe5 {[%emt 0:00:17]} 40.
Qh4 {[%emt 0:00:33]} Qxa4 {[%emt 0:00:17]} 41. Qxa4 {[%emt 0:00:10]} Rxa4 {
[%emt 0:00:00]} 42. Rd7 {[%emt 0:00:02]} e4 {[%emt 0:00:30]} 43. Re3 {[%emt 0:
00:14]} Bh6 {[%emt 0:00:01]} 44. Re2 {[%emt 0:00:23]} Bg5 {[%emt 0:00:19]} 45.
Nd5 {[%emt 0:00:00]} Kg8 {[%emt 0:00:00]} 46. Rxb7 {[%emt 0:00:11]} e3 {
[%emt 0:00:28]} 47. Kc2 {[%emt 0:00:04]} Ra6 {[%emt 0:00:12]} 48. Nc7 {[%emt 0:
00:06]} 1-0

[Event "European Rapid Championship 2021"]
[Site "Katowice"]
[Date "2021.12.18"]
[Round "5.24"]
[White "Mulet, Piotr"]
[Black "Savicevs, Arsenijs"]
[Result "0-1"]
[ECO "B22"]
[WhiteElo "2175"]
[BlackElo "1881"]
[Annotator "NA"]
[PlyCount "110"]
[EventDate "2021.12.18"]
[EventType "swiss"]
[EventCountry "POL"]
[SourceTitle "playchess.com"]
[Source "ChessBase"]
[SourceQuality "1"]
[TimeControl "900+10"]

1. e4 {[%emt 0:00:02]} c5 {[%emt 0:00:01]} 2. c3 {[%emt 0:00:01]} d5 {[%emt 0:
00:02]} 3. exd5 {[%emt 0:00:01]} Qxd5 {[%emt 0:00:02]} 4. d4 {[%emt 0:00:01]}
e6 {[%emt 0:00:03]} 5. Nf3 {[%emt 0:00:01]} Nf6 {[%emt 0:00:02]} 6. Na3 {
[%emt 0:00:01]} cxd4 {[%emt 0:00:24]} 7. Nb5 {[%emt 0:00:01]} Na6 {[%emt 0:01:
01]} 8. Qxd4 {[%emt 0:00:06]} Bc5 {[%emt 0:00:09]} 9. Qxd5 {[%emt 0:00:11]}
Nxd5 {[%emt 0:00:05]} 10. Bc4 {[%emt 0:00:06]} Nac7 {[%emt 0:00:18]} 11. Nxc7+
{[%emt 0:00:18]} Nxc7 {[%emt 0:00:03]} 12. Bf4 {[%emt 0:00:07]} Bb6 {[%emt 0:
00:54]} 13. a4 {[%emt 0:00:42]} a5 {[%emt 0:00:12]} 14. O-O {[%emt 0:00:26]} f6
{[%emt 0:00:23]} 15. Bxc7 {[%emt 0:02:19]} Bxc7 {[%emt 0:00:04]} 16. Nd4 {
[%emt 0:00:03]} e5 {[%emt 0:01:08]} 17. Nb5 {[%emt 0:00:46]} Bb6 {[%emt 0:00:
06]} 18. Rfd1 {[%emt 0:00:22]} Bg4 {[%emt 0:01:13]} 19. Rd2 {[%emt 0:00:28]}
Ke7 {[%emt 0:01:59]} 20. h3 {[%emt 0:00:06]} Bd7 {[%emt 0:00:43]} 21. Rad1 {
[%emt 0:02:16]} Rhd8 {[%emt 0:00:09]} 22. Bd5 {[%emt 0:01:15]} Bxb5 {[%emt 0:
00:27]} 23. axb5 {[%emt 0:00:03]} Rab8 {[%emt 0:00:56]} 24. Kf1 {[%emt 0:00:47]
} Bc5 {[%emt 0:00:28]} 25. h4 {[%emt 0:01:18]} b6 {[%emt 0:00:15]} 26. Rd3 {
[%emt 0:00:18]} Rd6 {[%emt 0:00:05]} 27. h5 {[%emt 0:00:22]} Rbd8 {[%emt 0:00:
21]} 28. c4 {[%emt 0:00:08]} f5 {[%emt 0:00:28]} 29. b3 {[%emt 0:01:30]} Rh6 {
[%emt 0:01:00]} 30. Rh3 {[%emt 0:00:05]} e4 {[%emt 0:01:21]} 31. f3 {[%emt 0:
00:40]} g6 {[%emt 0:00:57]} 32. fxe4 {[%emt 0:00:18]} fxe4 {[%emt 0:00:05]} 33.
Ke2 {[%emt 0:00:01]} Rxh5 {[%emt 0:00:45]} 34. Rxh5 {[%emt 0:00:06]} gxh5 {
[%emt 0:00:02]} 35. Rh1 {[%emt 0:00:17]} Kf6 {[%emt 0:02:45]} 36. Bxe4 {
[%emt 0:00:14]} Kg5 {[%emt 0:00:07]} 37. Rf1 {[%emt 0:00:38]} Rf8 {[%emt 0:00:
06]} 38. Bf3 {[%emt 0:00:40]} Re8+ {[%emt 0:00:41]} 39. Kd2 {[%emt 0:00:01]} h4
{[%emt 0:00:10]} 40. Kc2 {[%emt 0:00:14]} Re3 {[%emt 0:00:38]} 41. Rh1 {
[%emt 0:00:48]} h6 {[%emt 0:00:20]} 42. Rf1 {[%emt 0:00:13]} Bd4 {[%emt 0:00:
29]} 43. Rd1 {[%emt 0:00:06]} Rc3+ {[%emt 0:00:01]} 44. Kd2 {[%emt 0:00:11]}
Rxb3 {[%emt 0:00:05]} 45. Ke2 {[%emt 0:00:01]} Re3+ {[%emt 0:00:17]} 46. Kf1 {
[%emt 0:00:07]} Bc5 {[%emt 0:00:10]} 47. Rd5+ {[%emt 0:00:03]} Kf6 {[%emt 0:00:
04]} 48. Rh5 {[%emt 0:00:16]} Kg6 {[%emt 0:00:19]} 49. Rxh4 {[%emt 0:00:13]} a4
{[%emt 0:00:01]} 50. Rg4+ {[%emt 0:00:29]} Kf5 {[%emt 0:00:03]} 51. Rg8 {
[%emt 0:00:02]} a3 {[%emt 0:00:05]} 52. Ra8 {[%emt 0:00:02]} Rc3 {[%emt 0:00:
09]} 53. Bd5 {[%emt 0:00:11]} Rc2 {[%emt 0:00:08]} 54. Ke1 {[%emt 0:00:12]} a2
{[%emt 0:00:02]} 55. Kd1 {[%emt 0:00:08]} Rb2 {[%emt 0:00:02]} 0-1

[Event "European Rapid Championship 2021"]
[Site "Katowice"]
[Date "2021.12.18"]
[Round "5.25"]
[White "Diermair, Andreas"]
[Black "Kowalczyk, Rafal"]
[Result "1-0"]
[ECO "E50"]
[WhiteElo "2408"]
[BlackElo "2235"]
[Annotator "ChessBase"]
[PlyCount "167"]
[EventDate "2021.12.18"]
[EventType "swiss"]
[EventCountry "POL"]
[SourceTitle "playchess.com"]
[Source "ChessBase"]
[SourceQuality "1"]
[TimeControl "900+10"]

1. d4 {[%emt 0:00:01]} Nf6 {[%emt 0:00:02]} 2. c4 {[%emt 0:00:02]} e6 {[%emt 0:
00:01]} 3. Nc3 {[%emt 0:00:02]} Bb4 {[%emt 0:00:06]} 4. e3 {[%emt 0:00:01]} O-O
{[%emt 0:00:05]} 5. Nf3 {[%emt 0:00:02]} b6 {[%emt 0:00:09]} 6. Bd2 {[%emt 0:
00:11]} Bb7 {[%emt 0:00:08]} 7. Bd3 {[%emt 0:00:05]} Bxc3 {[%emt 0:00:12]} 8.
Bxc3 {[%emt 0:00:03]} Ne4 {[%emt 0:00:01]} 9. Bxe4 {[%emt 0:00:28]} Bxe4 {
[%emt 0:00:03]} 10. d5 {[%emt 0:00:03]} exd5 {[%emt 0:06:57]} 11. Qd4 {[%emt 0:
00:30]} f6 {[%emt 0:00:09]} 12. cxd5 {[%emt 0:00:11]} Re8 {[%emt 0:01:07]} 13.
O-O-O {[%emt 0:01:00]} d6 {[%emt 0:04:24]} 14. Ng5 {[%emt 0:02:50]} Qe7 {
[%emt 0:00:42]} 15. Ne6 {[%emt 0:01:35]} Bf5 {[%emt 0:00:20]} 16. Nf4 {[%emt 0:
01:11]} Nd7 {[%emt 0:00:19]} 17. Rhe1 {[%emt 0:01:19]} Qe4 {[%emt 0:01:27]} 18.
Qxe4 {[%emt 0:00:09]} Bxe4 {[%emt 0:00:19]} 19. f3 {[%emt 0:00:15]} Bg6 {
[%emt 0:00:01]} 20. g4 {[%emt 0:01:07]} Ne5 {[%emt 0:00:55]} 21. Bxe5 {[%emt 0:
00:36]} fxe5 {[%emt 0:00:38]} 22. Nxg6 {[%emt 0:01:27]} hxg6 {[%emt 0:00:02]}
23. Kd2 {[%emt 0:00:01]} Re7 {[%emt 0:00:05]} 24. Kd3 {[%emt 0:00:12]} e4+ {
[%emt 0:00:46]} 25. fxe4 {[%emt 0:00:09]} Rae8 {[%emt 0:00:03]} 26. Rc1 {
[%emt 0:00:03]} g5 {[%emt 0:00:17]} 27. h3 {[%emt 0:00:35]} Kh7 {[%emt 0:00:01]
} 28. Rc4 {[%emt 0:00:13]} Kg6 {[%emt 0:00:09]} 29. Rf1 {[%emt 0:00:12]} b5 {
[%emt 0:00:18]} 30. Rb4 {[%emt 0:00:11]} a5 {[%emt 0:00:08]} 31. Rxb5 {[%emt 0:
00:13]} Rxe4 {[%emt 0:00:01]} 32. Rf3 {[%emt 0:00:01]} a4 {[%emt 0:00:10]} 33.
Rb7 {[%emt 0:01:12]} R4e7 {[%emt 0:00:23]} 34. Rb4 {[%emt 0:00:17]} Re5 {
[%emt 0:00:09]} 35. e4 {[%emt 0:00:02]} Ra8 {[%emt 0:00:10]} 36. a3 {[%emt 0:
00:01]} Ra6 {[%emt 0:00:10]} 37. Rc4 {[%emt 0:00:34]} Re7 {[%emt 0:00:10]} 38.
Kc2 {[%emt 0:00:26]} Ra7 {[%emt 0:00:10]} 39. Kc3 {[%emt 0:00:17]} Re8 {
[%emt 0:00:07]} 40. Kd4 {[%emt 0:00:12]} Rb8 {[%emt 0:00:11]} 41. Rb4 {[%emt 0:
00:11]} Re8 {[%emt 0:00:07]} 42. Rf5 {[%emt 0:00:49]} Rh8 {[%emt 0:00:07]} 43.
Rf3 {[%emt 0:00:10]} Re8 {[%emt 0:00:00]} 44. Rc4 {[%emt 0:00:01]} Rb8 {
[%emt 0:00:03]} 45. Rf2 {[%emt 0:00:05]} Re8 {[%emt 0:00:22]} 46. Rb4 {[%emt 0:
00:18]} Rh8 {[%emt 0:00:09]} 47. Rf3 {[%emt 0:00:05]} Re8 {[%emt 0:00:01]} 48.
Rc3 {[%emt 0:00:01]} Rf8 {[%emt 0:00:08]} 49. Re3 {[%emt 0:00:08]} Ra5 {
[%emt 0:00:36]} 50. e5 {[%emt 0:00:24]} Rf4+ {[%emt 0:00:02]} 51. Re4 {[%emt 0:
00:04]} dxe5+ {[%emt 0:00:14]} 52. Kxe5 {[%emt 0:00:05]} Rf3 {[%emt 0:00:11]}
53. Rbc4 {[%emt 0:00:19]} Rd3 {[%emt 0:00:12]} 54. Rc6+ {[%emt 0:00:03]} Kh7 {
[%emt 0:00:01]} 55. Rd4 {[%emt 0:00:05]} Re3+ {[%emt 0:00:13]} 56. Kf5 {
[%emt 0:00:06]} Re7 {[%emt 0:00:15]} 57. Kxg5 {[%emt 0:00:24]} Rb5 {[%emt 0:00:
11]} 58. Rc2 {[%emt 0:00:16]} c5 {[%emt 0:00:11]} 59. Rxa4 {[%emt 0:00:12]}
Re5+ {[%emt 0:00:02]} 60. Kf4 {[%emt 0:00:10]} Rxd5 {[%emt 0:00:01]} 61. Rac4 {
[%emt 0:00:11]} Kg6 {[%emt 0:00:27]} 62. h4 {[%emt 0:00:16]} Kf6 {[%emt 0:00:
03]} 63. a4 {[%emt 0:00:19]} Ra5 {[%emt 0:00:04]} 64. Re4 {[%emt 0:00:27]} Rd1
{[%emt 0:00:17]} 65. g5+ {[%emt 0:00:14]} Kf7 {[%emt 0:00:01]} 66. Rce2 Ra7 {
[%emt 0:00:23]} 67. Rf2 {[%emt 0:00:29]} Rg1 {[%emt 0:00:12]} 68. Ke5+ {
[%emt 0:00:28]} Kg6 {[%emt 0:00:01]} 69. Kd5 {[%emt 0:00:01]} Rc1 70. b3 {
[%emt 0:00:45]} Rc3 {[%emt 0:00:29]} 71. Rb2 {[%emt 0:00:10]} Rd7+ {[%emt 0:00:
10]} 72. Kc6 {[%emt 0:00:08]} Rdd3 {[%emt 0:00:10]} 73. Rc4 {[%emt 0:00:09]}
Rxb3 {[%emt 0:00:08]} 74. Rxb3 {[%emt 0:00:02]} Rxb3 {[%emt 0:00:01]} 75. Kxc5
{[%emt 0:00:02]} Kf5 {[%emt 0:00:09]} 76. a5 {[%emt 0:00:00]} Ke6 {[%emt 0:00:
00]} 77. Kc6 {[%emt 0:00:10]} Ra3 {[%emt 0:00:00]} 78. Rc5 {[%emt 0:00:04]} g6
{[%emt 0:00:01]} 79. Kb6 {[%emt 0:00:10]} Rb3+ {[%emt 0:00:10]} 80. Rb5 {
[%emt 0:00:03]} Ra3 {[%emt 0:00:00]} 81. a6 {[%emt 0:00:05]} Kd7 {[%emt 0:00:
06]} 82. a7 {[%emt 0:00:05]} Kc8 {[%emt 0:00:01]} 83. Rc5+ {[%emt 0:00:01]} Kd7
84. Ra5 1-0

[Event "European Rapid Championship 2021"]
[Site "Katowice"]
[Date "2021.12.18"]
[Round "5.25"]
[White "Spanos, Nomikos"]
[Black "Rudnicki, Milosz"]
[Result "0-1"]
[ECO "A06"]
[WhiteElo "1914"]
[BlackElo "2200"]
[Annotator "NA"]
[PlyCount "94"]
[EventDate "2021.12.18"]
[EventType "swiss"]
[EventCountry "POL"]
[SourceTitle "playchess.com"]
[Source "ChessBase"]
[SourceQuality "1"]
[TimeControl "900+10"]

1. Nf3 {[%emt 0:00:06]} d5 {[%emt 0:00:10]} 2. b3 {[%emt 0:00:07]} Nf6 {
[%emt 0:00:06]} 3. Bb2 {[%emt 0:00:02]} Bf5 {[%emt 0:00:14]} 4. g3 {[%emt 0:00:
22]} e6 {[%emt 0:00:05]} 5. Bg2 {[%emt 0:00:04]} c6 {[%emt 0:00:06]} 6. O-O {
[%emt 0:00:11]} Be7 {[%emt 0:00:24]} 7. d3 {[%emt 0:00:08]} O-O {[%emt 0:00:29]
} 8. Nbd2 {[%emt 0:00:09]} h6 {[%emt 0:01:01]} 9. Re1 {[%emt 0:00:11]} a5 {
[%emt 0:00:47]} 10. h3 {[%emt 0:00:57]} Bh7 {[%emt 0:00:29]} 11. e4 {[%emt 0:
00:17]} dxe4 {[%emt 0:02:50]} 12. Nxe4 {[%emt 0:00:13]} Nbd7 {[%emt 0:00:30]}
13. a4 {[%emt 0:00:33]} Qc7 {[%emt 0:00:35]} 14. Qe2 {[%emt 0:00:52]} Rfd8 {
[%emt 0:00:47]} 15. Nd4 {[%emt 0:01:09]} Nxe4 {[%emt 0:02:34]} 16. Bxe4 {
[%emt 0:00:30]} Bxe4 {[%emt 0:00:05]} 17. Qxe4 {[%emt 0:00:12]} Bf6 {[%emt 0:
00:24]} 18. Rab1 {[%emt 0:02:33]} Qd6 {[%emt 0:00:12]} 19. Nf3 {[%emt 0:00:54]}
Bxb2 {[%emt 0:00:05]} 20. Rxb2 {[%emt 0:00:02]} Nf6 {[%emt 0:00:25]} 21. Qe5 {
[%emt 0:00:30]} Qb4 {[%emt 0:00:16]} 22. Rbb1 {[%emt 0:00:32]} Rd5 {[%emt 0:00:
07]} 23. Qe2 {[%emt 0:00:27]} Rad8 {[%emt 0:00:12]} 24. Nd2 {[%emt 0:00:24]} b5
{[%emt 0:00:20]} 25. axb5 {[%emt 0:00:08]} cxb5 {[%emt 0:00:01]} 26. Ne4 {
[%emt 0:00:18]} Nxe4 {[%emt 0:00:22]} 27. Qxe4 {[%emt 0:00:04]} Qxe4 {[%emt 0:
00:26]} 28. Rxe4 {[%emt 0:00:03]} Rc5 {[%emt 0:00:27]} 29. Rb2 {[%emt 0:00:31]}
b4 {[%emt 0:00:48]} 30. Kf1 {[%emt 0:00:13]} Kf8 {[%emt 0:01:17]} 31. Ke2 {
[%emt 0:00:03]} Ke7 {[%emt 0:00:02]} 32. Kd2 {[%emt 0:00:23]} Rdd5 {[%emt 0:00:
12]} 33. Rb1 {[%emt 0:00:44]} Kd6 {[%emt 0:00:34]} 34. Rc4 {[%emt 0:00:42]}
Rxc4 {[%emt 0:00:55]} 35. bxc4 {[%emt 0:00:02]} Rf5 {[%emt 0:00:02]} 36. Ke3 {
[%emt 0:00:26]} Kc5 {[%emt 0:00:07]} 37. f4 {[%emt 0:00:45]} g5 {[%emt 0:00:12]
} 38. Ra1 {[%emt 0:00:18]} Kb6 {[%emt 0:00:40]} 39. d4 {[%emt 0:00:27]} gxf4+ {
[%emt 0:00:01]} 40. gxf4 {[%emt 0:00:02]} Rh5 {[%emt 0:00:01]} 41. c5+ {
[%emt 0:00:15]} Kb5 {[%emt 0:00:04]} 42. Ke4 {[%emt 0:01:31]} Rxh3 {[%emt 0:00:
03]} 43. Rg1 {[%emt 0:00:33]} a4 {[%emt 0:00:35]} 44. Rg7 {[%emt 0:00:12]} a3 {
[%emt 0:00:06]} 45. Rxf7 {[%emt 0:00:17]} a2 {[%emt 0:00:02]} 46. Rb7+ {
[%emt 0:00:52]} Kc6 {[%emt 0:00:16]} 47. Rb6+ {[%emt 0:00:38]} Kc7 {[%emt 0:00:
04]} 0-1

[Event "European Rapid Championship 2021"]
[Site "Katowice"]
[Date "2021.12.18"]
[Round "5.26"]
[White "Mikhaletz, Lubomir"]
[Black "Wikar, Martyna"]
[Result "1-0"]
[ECO "B32"]
[WhiteElo "2166"]
[BlackElo "2168"]
[Annotator "NA"]
[PlyCount "97"]
[EventDate "2021.12.18"]
[EventType "swiss"]
[EventCountry "POL"]
[SourceTitle "playchess.com"]
[Source "ChessBase"]
[SourceQuality "1"]
[TimeControl "900+10"]

1. e4 {[%emt 0:00:25]} c5 {[%emt 0:00:01]} 2. Nf3 {[%emt 0:00:01]} Nc6 {
[%emt 0:00:04]} 3. d4 {[%emt 0:00:01]} cxd4 {[%emt 0:00:02]} 4. Nxd4 {[%emt 0:
00:01]} e5 {[%emt 0:00:04]} 5. Nb5 {[%emt 0:00:02]} d6 {[%emt 0:00:01]} 6. N1c3
{[%emt 0:00:02]} a6 {[%emt 0:00:01]} 7. Na3 {[%emt 0:00:02]} Be6 {[%emt 0:00:
02]} 8. Nd5 {[%emt 0:01:17]} Bxd5 {[%emt 0:00:14]} 9. exd5 {[%emt 0:00:05]}
Nce7 {[%emt 0:00:06]} 10. c4 {[%emt 0:00:40]} Nf6 {[%emt 0:02:11]} 11. Qb3 {
[%emt 0:00:35]} Rb8 {[%emt 0:00:39]} 12. Be3 {[%emt 0:01:33]} Qa5+ {[%emt 0:00:
48]} 13. Bd2 {[%emt 0:00:42]} Qc7 {[%emt 0:00:04]} 14. Qa4+ {[%emt 0:02:22]}
Qd7 {[%emt 0:00:30]} 15. Qb4 {[%emt 0:00:13]} Ne4 {[%emt 0:01:04]} 16. Be3 {
[%emt 0:00:18]} Nf5 {[%emt 0:00:55]} 17. Ba7 {[%emt 0:00:39]} Rc8 {[%emt 0:00:
25]} 18. Bd3 {[%emt 0:00:03]} Nc5 {[%emt 0:02:00]} 19. Bxf5 {[%emt 0:00:37]}
Qxf5 {[%emt 0:00:09]} 20. Bxc5 {[%emt 0:00:04]} Rxc5 {[%emt 0:00:01]} 21. Qxb7
{[%emt 0:00:18]} Qe4+ {[%emt 0:00:10]} 22. Kf1 {[%emt 0:00:01]} Be7 {[%emt 0:
01:54]} 23. b4 {[%emt 0:02:23]} Qd4 {[%emt 0:00:16]} 24. Re1 {[%emt 0:00:36]}
Rxc4 {[%emt 0:03:42]} 25. Nxc4 {[%emt 0:00:09]} Qxc4+ {[%emt 0:00:02]} 26. Kg1
{[%emt 0:00:01]} Bd8 {[%emt 0:00:30]} 27. g3 {[%emt 0:00:49]} O-O {[%emt 0:00:
10]} 28. Kg2 {[%emt 0:01:29]} Qxa2 {[%emt 0:00:29]} 29. Rc1 {[%emt 0:01:06]} e4
{[%emt 0:01:21]} 30. Rhe1 {[%emt 0:01:04]} e3 {[%emt 0:00:15]} 31. Rxe3 {
[%emt 0:01:05]} Bg5 {[%emt 0:00:03]} 32. Rce1 {[%emt 0:00:11]} Bxe3 {[%emt 0:
00:04]} 33. Rxe3 {[%emt 0:00:02]} Qc4 {[%emt 0:00:18]} 34. Qc6 {[%emt 0:00:10]}
Qxb4 {[%emt 0:00:07]} 35. Qxa6 {[%emt 0:00:06]} Qc5 {[%emt 0:00:19]} 36. Qc6 {
[%emt 0:00:04]} Qxc6 {[%emt 0:00:04]} 37. dxc6 {[%emt 0:00:01]} Rc8 {[%emt 0:
00:01]} 38. Rc3 {[%emt 0:00:01]} Kf8 {[%emt 0:00:01]} 39. Kf3 {[%emt 0:00:02]}
Ke7 {[%emt 0:00:04]} 40. Ke4 {[%emt 0:00:00]} Ke6 {[%emt 0:00:04]} 41. Kd4 {
[%emt 0:00:01]} d5 {[%emt 0:00:48]} 42. Kc5 {[%emt 0:00:02]} d4 {[%emt 0:00:17]
} 43. Rc1 {[%emt 0:00:39]} d3 {[%emt 0:00:26]} 44. Re1+ {[%emt 0:00:02]} Kf6 {
[%emt 0:00:01]} 45. Rd1 {[%emt 0:00:02]} Ra8 {[%emt 0:00:46]} 46. Rxd3 {
[%emt 0:00:36]} Ra2 {[%emt 0:01:00]} 47. c7 {[%emt 0:00:57]} Ke5 {[%emt 0:00:
11]} 48. Re3+ {[%emt 0:00:10]} Kf6 {[%emt 0:00:01]} 49. Rc3 {[%emt 0:00:04]}
1-0

[Event "European Rapid Championship 2021"]
[Site "Katowice"]
[Date "2021.12.18"]
[Round "5.26"]
[White "Paprocki, Jaroslaw"]
[Black "Gretarsson, Helgi Ass"]
[Result "0-1"]
[ECO "A04"]
[WhiteElo "2165"]
[BlackElo "2476"]
[Annotator "ChessBase"]
[PlyCount "80"]
[EventDate "2021.12.18"]
[EventType "swiss"]
[EventCountry "POL"]
[SourceTitle "playchess.com"]
[Source "ChessBase"]
[SourceQuality "1"]
[TimeControl "900+10"]

1. Nf3 {[%emt 0:00:03]} g6 {[%emt 0:00:01]} 2. d4 {[%emt 0:00:10]} Bg7 {
[%emt 0:00:02]} 3. g3 {[%emt 0:00:15]} d5 {[%emt 0:00:03]} 4. Bg2 {[%emt 0:00:
04]} c6 {[%emt 0:00:02]} 5. O-O {[%emt 0:00:32]} Nf6 {[%emt 0:00:01]} 6. Na3 {
[%emt 0:01:12]} O-O {[%emt 0:03:52]} 7. c4 {[%emt 0:00:16]} Be6 {[%emt 0:00:02]
} 8. Bf4 {[%emt 0:00:43]} dxc4 {[%emt 0:01:42]} 9. Ng5 {[%emt 0:00:12]} Bf5 {
[%emt 0:01:15]} 10. e4 {[%emt 0:01:47]} Bc8 {[%emt 0:00:01]} 11. e5 {[%emt 0:
01:30]} Nd5 {[%emt 0:00:03]} 12. Nxc4 {[%emt 0:01:33]} f6 {[%emt 0:01:04]} 13.
Nh3 {[%emt 0:00:57]} Be6 {[%emt 0:00:01]} 14. exf6 {[%emt 0:00:39]} exf6 {
[%emt 0:00:03]} 15. Bd6 {[%emt 0:01:35]} Re8 {[%emt 0:00:07]} 16. Qc1 {[%emt 0:
03:15]} Na6 {[%emt 0:01:07]} 17. a4 {[%emt 0:00:23]} Qd7 {[%emt 0:01:38]} 18.
Nf4 {[%emt 0:00:11]} Nxf4 {[%emt 0:02:35]} 19. Bxf4 {[%emt 0:00:04]} Bf8 {
[%emt 0:00:00]} 20. Rd1 {[%emt 0:00:13]} Rad8 {[%emt 0:00:09]} 21. Ne3 {
[%emt 0:01:20]} Nb4 {[%emt 0:00:05]} 22. h4 {[%emt 0:00:08]} h6 {[%emt 0:01:23]
} 23. Nc2 {[%emt 0:00:40]} Bb3 {[%emt 0:00:01]} 24. Nxb4 {[%emt 0:00:30]} Bxb4
{[%emt 0:00:43]} 25. Rf1 {[%emt 0:00:01]} g5 {[%emt 0:00:09]} 26. hxg5 {
[%emt 0:00:12]} hxg5 {[%emt 0:00:01]} 27. Be3 {[%emt 0:00:08]} Qf5 {[%emt 0:00:
47]} 28. Qb1 {[%emt 0:00:14]} Bc2 {[%emt 0:00:05]} 29. Qa2+ {[%emt 0:00:01]}
Kg7 {[%emt 0:00:01]} 30. Qc4 {[%emt 0:00:13]} a5 {[%emt 0:00:05]} 31. Rfc1 {
[%emt 0:00:31]} Bd3 {[%emt 0:00:05]} 32. Qb3 {[%emt 0:00:12]} Rh8 {[%emt 0:00:
08]} 33. Rc5 {[%emt 0:00:06]} Bxc5 {[%emt 0:00:52]} 34. dxc5 {[%emt 0:00:14]}
Ba6 {[%emt 0:00:01]} 35. Qb6 {[%emt 0:00:17]} Qc2 {[%emt 0:01:43]} 36. Qc7+ {
[%emt 0:00:28]} Kg6 {[%emt 0:00:01]} 37. Bf3 {[%emt 0:00:01]} Be2 {[%emt 0:00:
15]} 38. Bxe2 {[%emt 0:00:29]} Qxe2 {[%emt 0:00:03]} 39. Kg2 {[%emt 0:00:01]}
Rd1 {[%emt 0:00:48]} 40. Rxd1 {[%emt 0:00:02]} Qxd1 {[%emt 0:00:00]} 0-1